fUST/lending_fUST_20250717
["ID","MTS","AMOUNT","RATE_DAILY","PERIOD"]
[372650590,1752733852718,-151.0,0.000191,2]
[372650591,1752733852728,-151.0,0.00019101,2]
[372650592,1752733852738,-166.465663,0.00019114,2]
[372650593,1752733852752,-166.465663,0.00019114,2]
[372650594,1752733852762,-1449.636299,0.00019118,2]
[372650595,1752733852771,-449.2866887,0.00019128,2]
[372650596,1752733852780,-460.0,0.00019128,2]
[372650597,1752733852794,-460.0,0.00019128,2]
[372650598,1752733852803,-460.0,0.00019128,2]
[372650599,1752733852815,-460.0,0.00019128,2]
[372650600,1752733852826,-460.0,0.00019128,2]
[372650601,1752733852835,-460.0,0.00019128,2]
[372650602,1752733852846,-486.72,0.00019128,2]
[372650603,1752733852855,-460.0,0.00019128,2]
[372650604,1752733852864,-460.0,0.00019128,2]
[372650605,1752733852873,-171.10370897,0.00019128,2]
[372650606,1752733852883,-530.92,0.00019128,2]
[372650607,1752733852893,-587.58,0.00019128,2]
[372650608,1752733852903,-460.0,0.00019128,2]
[372650609,1752733852912,-598.69,0.00019128,2]
[372650610,1752733852922,-460.0,0.00019128,2]
[372650611,1752733852931,-460.0,0.00019128,2]
[372650612,1752733852941,-460.0,0.00019128,2]
[372650613,1752733852950,-460.0,0.00019128,2]
[372650614,1752733852960,-672.11,0.00019128,2]
[372650615,1752733852970,-460.0,0.00019128,2]
[372650616,1752733852979,-460.0,0.00019128,2]
[372650617,1752733852989,-460.0,0.00019128,2]
[372650618,1752733852999,-460.0,0.00019128,2]
[372650619,1752733853008,-460.0,0.00019128,2]
[372650620,1752733853017,-5674.72,0.00019128,2]
[372650621,1752733853027,-460.0,0.00019128,2]
[372650622,1752733853037,-460.0,0.00019128,2]
[372650623,1752733853046,-460.0,0.00019128,2]
[372650624,1752733853056,-460.0,0.00019128,2]
[372650625,1752733853068,-151.0,0.00019128,2]
[372650626,1752733853078,-460.0,0.00019128,2]
[372650627,1752733853086,-290.997788,0.00019128,2]
[372650628,1752733853096,-460.0,0.00019128,2]
[372650629,1752733853105,-460.0,0.00019128,2]
[372650630,1752733853114,-2305.95,0.00019128,2]
[372650631,1752733853123,-460.0,0.00019128,2]
[372650632,1752733853133,-4193.99,0.00019128,2]
[372650633,1752733853142,-710.08,0.00019128,2]
[372650634,1752733853152,-460.0,0.00019128,2]
[372650635,1752733853162,-460.0,0.00019128,2]
[372650636,1752733853171,-460.0,0.00019128,2]
[372650637,1752733853181,-460.0,0.00019128,2]
[372650638,1752733853193,-460.0,0.00019128,2]
[372650639,1752733853202,-1286.69,0.00019128,2]
[372650640,1752733853212,-460.0,0.00019128,2]
[372650641,1752733853221,-2289.29,0.00019128,2]
[372650642,1752733853230,-460.0,0.00019128,2]
[372650643,1752733853241,-460.0,0.0001913,2]
[372650644,1752733853251,-298.687031,0.0001913,2]
[372650645,1752733853261,-298.687031,0.0001913,2]
[372650646,1752733853272,-219.032396,0.0001913,2]
[372650647,1752733853281,-219.032396,0.0001913,2]
[372650648,1752733853291,-460.0,0.00019131,2]
[372650649,1752733853300,-460.0,0.00019131,2]
[372650650,1752733853310,-460.0,0.00019131,2]
[372650651,1752733853322,-460.0,0.00019131,2]
[372650652,1752733853332,-1737.46,0.00019131,2]
[372650653,1752733853342,-2090.97,0.00019131,2]
[372650654,1752733853352,-899.49,0.00019131,2]
[372650655,1752733853361,-2579.09,0.00019131,2]
[372650656,1752733853371,-642.73,0.00019131,2]
[372650657,1752733853381,-460.0,0.00019132,2]
[372650658,1752733853391,-460.0,0.00019132,2]
[372650659,1752733853401,-224.22990729,0.00019132,2]
[372650660,1752733853411,-460.0,0.00019132,2]
[372650661,1752733853420,-460.0,0.00019132,2]
[372650662,1752733853430,-151.326957,0.00019132,2]
[372650663,1752733853439,-151.326957,0.00019132,2]
[372650664,1752733853449,-460.0,0.00019132,2]
[372650665,1752733853458,-460.0,0.00019132,2]
[372650666,1752733853468,-292.78179,0.00019132,2]
[372650667,1752733853478,-292.78179,0.00019132,2]
[372650668,1752733853487,-460.0,0.00019132,2]
[372650669,1752733853497,-574.00544368,0.00019132,2]
[372650670,1752733853506,-460.0,0.00019132,2]
[372650671,1752733853516,-151.0,0.00019132,2]
[372650672,1752733853526,-460.0,0.00019132,2]
[372650673,1752733853536,-460.0,0.00019132,2]
[372650674,1752733853545,-674.33,0.00019132,2]
[372650675,1752733853555,-151.0,0.00019132,2]
[372650676,1752733853566,-460.0,0.00019132,2]
[372650677,1752733853576,-460.0,0.00019132,2]
[372650678,1752733853586,-460.0,0.00019132,2]
[372650679,1752733853597,-460.0,0.00019132,2]
[372650680,1752733853608,-460.0,0.00019132,2]
[372650681,1752733853618,-151.0,0.00019132,2]
[372650682,1752733853629,-460.0,0.00019132,2]
[372650683,1752733853639,-460.0,0.00019132,2]
[372650684,1752733853649,-151.0,0.00019132,2]
[372650685,1752733853659,-460.0,0.00019132,2]
[372650686,1752733853669,-151.0,0.00019132,2]
[372650687,1752733853679,-460.0,0.00019132,2]
[372650688,1752733853689,-460.0,0.00019132,2]
[372650689,1752733853699,-460.0,0.00019132,2]
[372650690,1752733853708,-460.0,0.00019132,2]
[372650691,1752733853718,-460.0,0.00019132,2]
[372650692,1752733853727,-460.0,0.00019132,2]
[372650693,1752733853738,-466.80292362,0.00019132,2]
[372650694,1752733853751,-460.0,0.00019132,2]
[372650695,1752733853761,-151.0,0.00019133,2]
[372650696,1752733853771,-500.0,0.00019173,2]
[372650697,1752733853782,-500.0,0.00019173,2]
[372650698,1752733853874,-500.0,0.00019173,2]
[372650699,1752733853886,-151.0,0.00019176,2]
[372650700,1752733853896,-151.0,0.00019178,2]
[372650701,1752733853907,-330.792834,0.00019178,2]
[372650702,1752733853916,-330.792834,0.00019178,2]
[372650703,1752733853925,-151.0,0.00019178,2]
[372650704,1752733853935,-166.465663,0.00019178,2]
[372650705,1752733853945,-166.465663,0.00019178,2]
[372650706,1752733853955,-263.172676,0.00019178,2]
[372650707,1752733853965,-263.172676,0.00019178,2]
[372650708,1752733853974,-200.921694,0.00019178,2]
[372650709,1752733853984,-151.0,0.00019178,2]
[372650710,1752733853993,-151.0,0.00019178,2]
[372650711,1752733854003,-151.0,0.00019178,2]
[372650712,1752733854013,-151.0,0.00019178,2]
[372650713,1752733854023,-151.0,0.00019178,2]
[372650714,1752733854033,-151.0,0.00019178,2]
[372650715,1752733854042,-488.759505,0.00019178,2]
[372650716,1752733854053,-488.759505,0.00019178,2]
[372650717,1752733854062,-151.0,0.00019178,2]
[372650718,1752733854072,-151.0,0.00019178,2]
[372650719,1752733854081,-151.0,0.00019178,2]
[372650720,1752733854091,-351.592733,0.00019178,2]
[372650721,1752733854101,-351.592733,0.00019178,2]
[372650722,1752733854111,-151.0,0.00019178,2]
[372650723,1752733854122,-424.07649,0.00019178,2]
[372650724,1752733854131,-424.07649,0.00019178,2]
[372650725,1752733854140,-500.0,0.00019178,2]
[372650726,1752733854149,-500.0,0.00019178,2]
[372650727,1752733854159,-500.0,0.00019178,2]
[372650728,1752733854168,-500.0,0.00019178,2]
[372650729,1752733854178,-500.0,0.00019178,2]
[372650730,1752733854189,-151.0,0.00019178,2]
[372650731,1752733854199,-296.12937,0.00019178,2]
[372650732,1752733854208,-296.12937,0.00019178,2]
[372650733,1752733854218,-151.0,0.00019178,2]
[372650734,1752733854227,-151.0,0.00019178,2]
[372650735,1752733854237,-298.687031,0.00019178,2]
[372650736,1752733854246,-298.687031,0.00019178,2]
[372650737,1752733854255,-151.326957,0.00019178,2]
[372650738,1752733854265,-151.326957,0.00019178,2]
[372650739,1752733854274,-292.78179,0.00019178,2]
[372650740,1752733854284,-292.78179,0.00019178,2]
[372650741,1752733854294,-151.0,0.00019178,2]
[372650742,1752733854303,-151.0,0.00019178,2]
[372650743,1752733854315,-151.0,0.00019178,2]
[372650744,1752733854324,-218.083352,0.00019178,2]
[372650745,1752733854334,-151.0,0.00019178,2]
[372650746,1752733854343,-151.0,0.00019178,2]
[372650747,1752733854352,-151.0,0.00019178,2]
[372650748,1752733854362,-151.0,0.00019178,2]
[372650749,1752733854372,-219.032396,0.00019178,2]
[372650750,1752733854382,-219.032396,0.00019178,2]
[372650751,1752733854392,-151.0,0.00019178,2]
[372650752,1752733854401,-391.76519705,0.00019178,2]
[372650753,1752733854411,-500.0,0.00019178,2]
[372650754,1752733854420,-500.0,0.00019178,2]
[372650755,1752733854430,-500.0,0.00019178,2]
[372650756,1752733854439,-500.0,0.00019178,2]
[372650757,1752733854448,-500.0,0.00019178,2]
[372650758,1752733854458,-500.0,0.00019178,2]
[372650759,1752733854467,-436.23997605,0.00019178,2]
[372650760,1752733854477,-500.0,0.00019178,2]
[372650761,1752733854486,-500.0,0.00019178,2]
[372650762,1752733854495,-500.0,0.00019178,2]
[372650763,1752733854505,-500.0,0.00019178,2]
[372650764,1752733854514,-151.0,0.00019178,2]
[372650765,1752733854524,-500.0,0.00019178,2]
[372650766,1752733854534,-500.0,0.00019178,2]
[372650767,1752733854543,-151.24696106,0.00019178,2]
[372650768,1752733854553,-53979.3960775,0.00019178,2]
[372650769,1752733854564,-151.0,0.00019178,2]
[372650770,1752733854574,-151.0,0.00019178,2]
[372650771,1752733854583,-151.0,0.00019178,2]
[372650772,1752733854593,-151.0,0.00019178,2]
[372650773,1752733854602,-151.0,0.00019178,2]
[372650774,1752733854612,-151.0,0.00019178,2]
[372650775,1752733854622,-1097.354724,0.00019178,2]
[372650776,1752733854631,-666.0,0.00019178,2]
[372650777,1752733854640,-5000.0,0.00019178,2]
[372650778,1752733854650,-5000.0,0.00019178,2]
[372650779,1752733854660,-5000.0,0.00019178,2]
[372650780,1752733854670,-4100.57100552,0.00019178,2]
[372650781,1752733854680,-151.0,0.000192,2]
[372650782,1752733854690,-151.0,0.000192,2]
[372650783,1752733854700,-460.0,0.00019227,2]
[372650784,1752733854709,-363.95662643,0.00019227,2]
[372650785,1752733854719,-460.0,0.00019227,2]
[372650786,1752733854728,-460.0,0.00019227,2]
[372650787,1752733854738,-4140.04,0.00019227,2]
[372650788,1752733854752,-932.79,0.00019227,2]
[372650789,1752733854761,-540.39,0.00019227,2]
[372650790,1752733854771,-460.0,0.00019227,2]
[372650791,1752733854780,-2892.45,0.00019227,2]
[372650792,1752733854791,-460.0,0.00019227,2]
[372650793,1752733854800,-460.0,0.00019227,2]
[372650794,1752733854810,-2151.51,0.00019227,2]
[372650795,1752733854823,-727.28,0.00019227,2]
[372650796,1752733854832,-460.0,0.00019228,2]
[372650797,1752733854842,-460.0,0.00019228,2]
[372650798,1752733854851,-460.0,0.00019228,2]
[372650799,1752733854861,-460.0,0.00019229,2]
[372650800,1752733854870,-460.0,0.00019229,2]
[372650801,1752733854880,-460.0,0.00019229,2]
[372650802,1752733854890,-460.0,0.00019229,2]
[372650803,1752733854899,-460.0,0.00019229,2]
[372650804,1752733854909,-460.0,0.00019229,2]
[372650805,1752733854919,-460.0,0.00019229,2]
[372650806,1752733854929,-460.0,0.00019229,2]
[372650807,1752733854938,-631.04,0.00019229,2]
[372650808,1752733854949,-460.0,0.00019229,2]
[372650809,1752733854958,-460.0,0.00019229,2]
[372650810,1752733854968,-1599.14,0.00019229,2]
[372650811,1752733854978,-460.0,0.00019229,2]
[372650812,1752733854988,-460.0,0.00019229,2]
[372650813,1752733854997,-460.0,0.00019229,2]
[372650814,1752733855006,-613.34,0.00019229,2]
[372650815,1752733855016,-619.55,0.00019229,2]
[372650816,1752733855026,-1158.0,0.00019229,2]
[372650817,1752733855036,-460.0,0.00019229,2]
[372650818,1752733855045,-460.0,0.00019229,2]
[372650819,1752733855055,-693.25,0.00019229,2]
[372650820,1752733855065,-579.42869758,0.00019229,2]
[372650821,1752733855075,-460.0,0.00019229,2]
[372650822,1752733855085,-460.0,0.00019229,2]
[372650823,1752733855095,-1194.0,0.00019231,2]
[372650824,1752733855105,-151.0,0.00019231,2]
[372650825,1752733855115,-1100.0,0.00019231,2]
[372650826,1752733855124,-198.0,0.00019231,2]
[372650827,1752733855136,-500.0,0.00019231,2]
[372650828,1752733855145,-464.19478714,0.00019231,2]
[372650829,1752733855154,-460.0,0.00019231,2]
[372650830,1752733855163,-460.0,0.00019231,2]
[372650831,1752733855173,-460.0,0.00019231,2]
[372650832,1752733855183,-460.0,0.00019231,2]
[372650833,1752733855193,-460.0,0.00019231,2]
[372650834,1752733855202,-460.0,0.00019231,2]
[372650835,1752733855212,-460.0,0.00019231,2]
[372650836,1752733855221,-460.0,0.00019231,2]
[372650837,1752733855231,-847.53,0.00019231,2]
[372650838,1752733855241,-692.39,0.00019231,2]
[372650839,1752733855251,-462.6850279,0.00019231,2]
[372650840,1752733855260,-460.0,0.00019231,2]
[372650841,1752733855269,-460.0,0.00019231,2]
[372650842,1752733855279,-546.11,0.00019231,2]
[372650843,1752733855289,-460.0,0.00019231,2]
[372650844,1752733855298,-460.0,0.00019231,2]
[372650845,1752733855308,-3583.74,0.00019231,2]
[372650846,1752733855320,-460.0,0.00019231,2]
[372650847,1752733855330,-460.0,0.00019232,2]
[372650848,1752733855340,-460.0,0.00019232,2]
[372650849,1752733855350,-460.0,0.00019233,2]
[372650850,1752733855359,-303.16503777,0.00019233,2]
[372650851,1752733855371,-589.27158093,0.00019233,2]
[372650852,1752733855382,-460.0,0.00019233,2]
[372650853,1752733855392,-151.0,0.00019235,2]
[372650854,1752733855402,-330.792834,0.00019235,2]
[372650855,1752733855411,-330.792834,0.00019235,2]
[372650856,1752733855422,-263.172676,0.00019235,2]
[372650857,1752733855431,-263.172676,0.00019235,2]
[372650858,1752733855441,-647.0,0.00019241,2]
[372650859,1752733855450,-2155.0,0.00019252,2]
[372650860,1752733855460,-968.0,0.00019252,2]
[372650861,1752733855550,-19313.41483182,0.00019255,2]
[372650862,1752733855560,-407.0,0.00019258,2]
[372650863,1752733855574,-414.376,0.00019258,2]
[372650864,1752733855584,-500.0,0.00019268,2]
[372650865,1752733855593,-1500.0,0.00019268,2]
[372650866,1752733855603,-303.00000303,0.00019278,2]
[372650867,1752733855612,-150.13,0.00019295,2]
[372650868,1752733855622,-150.095,0.00019295,2]
[372650869,1752733855631,-151.0,0.000193,2]
[372650870,1752733855641,-258.842857,0.00019309,2]
[372650871,1752733855650,-166.465663,0.00019309,2]
[372650872,1752733855660,-166.465663,0.00019309,2]
[372650873,1752733855670,-294.79733788,0.00019328,2]
[372650874,1752733855679,-265.438943,0.00019329,2]
[372650875,1752733855688,-258.842857,0.00019329,2]
[372650876,1752733855698,-330.792834,0.00019329,2]
[372650877,1752733855707,-330.792834,0.00019329,2]
[372650878,1752733855717,-151.0,0.00019329,2]
[372650879,1752733855726,-151.0,0.00019329,2]
[372650880,1752733855735,-166.465663,0.00019329,2]
[372650881,1752733855749,-166.465663,0.00019329,2]
[372650882,1752733855758,-263.172676,0.00019329,2]
[372650883,1752733855768,-263.172666,0.00019329,2]
[372650884,1752733855777,-488.759505,0.00019329,2]
[372650885,1752733855787,-488.759505,0.00019329,2]
[372650886,1752733855796,-151.0,0.00019329,2]
[372650887,1752733855806,-351.592733,0.00019329,2]
[372650888,1752733855817,-351.592733,0.00019329,2]
[372650889,1752733855827,-151.0,0.00019329,2]
[372650890,1752733855836,-424.07649,0.00019329,2]
[372650891,1752733855845,-424.07649,0.00019329,2]
[372650892,1752733855855,-151.0,0.00019329,2]
[372650893,1752733855864,-296.12937,0.00019329,2]
[372650894,1752733855874,-296.12937,0.00019329,2]
[372650895,1752733855883,-151.0,0.00019329,2]
[372650896,1752733855893,-151.0,0.00019329,2]
[372650897,1752733855902,-298.687031,0.00019329,2]
[372650898,1752733855911,-298.687031,0.00019329,2]
[372650899,1752733855921,-151.326957,0.00019329,2]
[372650900,1752733855930,-151.326957,0.00019329,2]
[372650901,1752733855940,-151.0,0.00019329,2]
[372650902,1752733855950,-151.0,0.00019329,2]
[372650903,1752733855959,-292.78179,0.00019329,2]
[372650904,1752733855969,-292.78179,0.00019329,2]
[372650905,1752733855978,-151.0,0.00019329,2]
[372650906,1752733855988,-243.988501,0.00019329,2]
[372650907,1752733855997,-152.256303,0.00019329,2]
[372650908,1752733856006,-151.0,0.00019329,2]
[372650909,1752733856016,-151.0,0.00019329,2]
[372650910,1752733856025,-233.024531,0.00019329,2]
[372650911,1752733856034,-158.945871,0.00019329,2]
[372650912,1752733856044,-219.032396,0.00019329,2]
[372650913,1752733856053,-219.032396,0.00019329,2]
[372650914,1752733856063,-151.0,0.00019329,2]
[372650915,1752733856075,-100000.0,0.00019329,2]
[372650916,1752733856084,-160.0,0.00019336,2]
[372650917,1752733856093,-5000.0,0.00019347,2]
[372650918,1752733856103,-4236.5807971,0.0001935,2]
[372650919,1752733856112,-6103.66126702,0.00019352,2]
[372650920,1752733856121,-168.0,0.00019355,2]
[372650921,1752733856131,-150.203,0.00019377,2]
[372650922,1752733856140,-151.011,0.00019377,2]
[372650923,1752733856149,-150.461,0.00019377,2]
[372650924,1752733856158,-245.588,0.00019377,2]
[372650925,1752733856168,-218.115,0.00019377,2]
[372650926,1752733856177,-1805.08,0.00019393,3]
[372650927,1752733856187,-902.54,0.00019393,3]
[372650928,1752733856196,-451.26,0.00019393,3]
[372650929,1752733856206,-1000.0,0.000194,2]
[372650930,1752733856215,-460.0,0.00019402,2]
[372650931,1752733856225,-460.0,0.00019402,2]
[372650932,1752733856234,-460.0,0.00019402,2]
[372650933,1752733856243,-460.0,0.00019402,2]
[372650934,1752733856252,-460.0,0.00019402,2]
[372650935,1752733856261,-486.72,0.00019402,2]
[372650936,1752733856271,-460.0,0.00019402,2]
[372650937,1752733856280,-530.92,0.00019402,2]
[372650938,1752733856290,-587.58,0.00019402,2]
[372650939,1752733856300,-460.0,0.00019402,2]
[372650940,1752733856309,-598.69,0.00019402,2]
[372650941,1752733856322,-263.30539684,0.00019402,2]
[372650942,1752733856331,-460.0,0.00019402,2]
[372650943,1752733856341,-672.11,0.00019402,2]
[372650944,1752733856351,-460.0,0.00019402,2]
[372650945,1752733856361,-460.0,0.00019402,2]
[372650946,1752733856372,-460.0,0.00019402,2]
[372650947,1752733856381,-460.0,0.00019402,2]
[372650948,1752733856391,-460.0,0.00019402,2]
[372650949,1752733856401,-5674.72,0.00019402,2]
[372650950,1752733856411,-460.0,0.00019402,2]
[372650951,1752733856420,-460.0,0.00019402,2]
[372650952,1752733856430,-460.0,0.00019402,2]
[372650953,1752733856440,-460.0,0.00019402,2]
[372650954,1752733856450,-460.0,0.00019402,2]
[372650955,1752733856459,-460.0,0.00019402,2]
[372650956,1752733856469,-460.0,0.00019402,2]
[372650957,1752733856479,-2305.95,0.00019402,2]
[372650958,1752733856491,-460.0,0.00019402,2]
[372650959,1752733856500,-4193.99,0.00019402,2]
[372650960,1752733856510,-710.08,0.00019402,2]
[372650961,1752733856520,-460.0,0.00019402,2]
[372650962,1752733856529,-460.0,0.00019402,2]
[372650963,1752733856540,-460.0,0.00019402,2]
[372650964,1752733856550,-460.0,0.00019402,2]
[372650965,1752733856560,-460.0,0.00019402,2]
[372650966,1752733856572,-1286.69,0.00019402,2]
[372650967,1752733856582,-460.0,0.00019402,2]
[372650968,1752733856593,-2289.29,0.00019402,2]
[372650969,1752733856603,-460.0,0.00019402,2]
[372650970,1752733856613,-460.0,0.00019404,2]
[372650971,1752733856623,-460.0,0.00019405,2]
[372650972,1752733856633,-460.0,0.00019405,2]
[372650973,1752733856643,-500.0,0.00019405,2]
[372650974,1752733856653,-460.0,0.00019405,2]
[372650975,1752733856663,-460.0,0.00019405,2]
[372650976,1752733856673,-1737.46,0.00019405,2]
[372650977,1752733856683,-2090.97,0.00019405,2]
[372650978,1752733856693,-899.49,0.00019405,2]
[372650979,1752733856702,-2579.09,0.00019405,2]
[372650980,1752733856712,-642.73,0.00019405,2]
[372650981,1752733856721,-460.0,0.00019406,2]
[372650982,1752733856731,-504.1863455,0.00019406,2]
[372650983,1752733856746,-460.0,0.00019406,2]
[372650984,1752733856758,-460.0,0.00019406,2]
[372650985,1752733856772,-460.0,0.00019406,2]
[372650986,1752733856784,-183.568206,0.00019406,2]
[372650987,1752733856795,-674.33,0.00019406,2]
[372650988,1752733856804,-460.0,0.00019406,2]
[372650989,1752733856814,-460.0,0.00019406,2]
[372650990,1752733856828,-460.0,0.00019406,2]
[372650991,1752733856837,-191.07,0.00019406,2]
[372650992,1752733856848,-460.0,0.00019406,2]
[372650993,1752733856858,-451.24714679,0.00019406,2]
[372650994,1752733856868,-460.0,0.00019406,2]
[372650995,1752733856877,-460.0,0.00019406,2]
[372650996,1752733856887,-460.0,0.00019406,2]
[372650997,1752733856897,-460.0,0.00019406,2]
[372650998,1752733856907,-460.0,0.00019406,2]
[372650999,1752733856918,-460.0,0.00019406,2]
[372651000,1752733856928,-460.0,0.00019406,2]
[372651001,1752733856937,-460.0,0.00019406,2]
[372651002,1752733856947,-460.0,0.00019406,2]
[372651003,1752733856957,-151.0,0.00019407,2]
[372651004,1752733856966,-131709.2994328,0.0001945,2]
[372651005,1752733856976,-151.326957,0.0001945,2]
[372651006,1752733856986,-151.326957,0.0001945,2]
[372651007,1752733856997,-151.0,0.0001945,2]
[372651008,1752733857006,-151.0,0.0001945,2]
[372651009,1752733857016,-219.032396,0.0001945,2]
[372651010,1752733857025,-219.032396,0.0001945,2]
[372651011,1752733857034,-151.0,0.0001945,2]
[372651012,1752733857125,-151.0,0.00019452,2]
[372651013,1752733857135,-303.00000303,0.00019467,2]
[372651014,1752733857153,-1500.0,0.00019468,2]
[372651015,1752733857172,-1500.0,0.00019468,2]
[372651016,1752733857192,-500.0,0.00019473,2]
[372651017,1752733857207,-500.0,0.00019473,2]
[372651018,1752733857217,-501.08554331,0.00019473,2]
[372651019,1752733857226,-500.0,0.00019473,2]
[372651020,1752733857235,-160.10287166,0.00019473,2]
[372651021,1752733857244,-160.12959675,0.00019473,2]
[372651022,1752733857253,-158.1108441,0.00019473,2]
[372651023,1752733857263,-500.45452731,0.00019473,2]
[372651024,1752733857272,-500.0,0.00019473,2]
[372651025,1752733857282,-500.0,0.00019473,2]
[372651026,1752733857291,-500.0,0.00019473,2]
[372651027,1752733857299,-500.0,0.00019473,2]
[372651028,1752733857309,-152.10688042,0.00019473,2]
[372651029,1752733857321,-501.00855432,0.00019473,2]
[372651030,1752733857330,-500.0,0.00019473,2]
[372651031,1752733857340,-521.83916639,0.00019473,2]
[372651032,1752733857350,-500.0,0.00019473,2]
[372651033,1752733857359,-500.0,0.00019473,2]
[372651034,1752733857369,-313.97699375,0.00019473,2]
[372651035,1752733857378,-500.50308032,0.00019473,2]
[372651036,1752733857386,-500.0,0.00019473,2]
[372651037,1752733857396,-500.0,0.00019473,2]
[372651038,1752733857404,-500.0,0.00019473,2]
[372651039,1752733857413,-501.47029748,0.00019473,2]
[372651040,1752733857422,-500.0,0.00019473,2]
[372651041,1752733857431,-500.0,0.00019473,2]
[372651042,1752733857441,-500.0,0.00019473,2]
[372651043,1752733857450,-500.0,0.00019473,2]
[372651044,1752733857459,-172.77631336,0.00019473,2]
[372651045,1752733857468,-500.0,0.00019473,2]
[372651046,1752733857477,-500.0,0.00019473,2]
[372651047,1752733857487,-550.49386033,0.00019473,2]
[372651048,1752733857496,-345.01998582,0.00019473,2]
[372651049,1752733857505,-501.66459955,0.00019473,2]
[372651050,1752733857515,-500.0,0.00019473,2]
[372651051,1752733857524,-618.5967777,0.00019473,2]
[372651052,1752733857533,-500.0,0.00019473,2]
[372651053,1752733857543,-500.0,0.00019473,2]
[372651054,1752733857552,-500.0,0.00019473,2]
[372651055,1752733857560,-500.0,0.00019473,2]
[372651056,1752733857572,-500.0,0.00019473,2]
[372651057,1752733857582,-500.0,0.00019473,2]
[372651058,1752733857591,-500.0,0.00019473,2]
[372651059,1752733857600,-500.0,0.00019473,2]
[372651060,1752733857610,-500.0,0.00019473,2]
[372651061,1752733857619,-500.0,0.00019473,2]
[372651062,1752733857629,-500.0,0.00019473,2]
[372651063,1752733857638,-500.0,0.00019473,2]
[372651064,1752733857647,-443.13346081,0.00019473,2]
[372651065,1752733857656,-500.0,0.00019473,2]
[372651066,1752733857665,-522.70810626,0.00019473,2]
[372651067,1752733857674,-540.13657752,0.00019473,2]
[372651068,1752733857683,-500.0,0.00019473,2]
[372651069,1752733857691,-385.95731252,0.00019473,2]
[372651070,1752733857700,-500.0,0.00019473,2]
[372651071,1752733857709,-2041.64,0.000195,2]
[372651072,1752733857718,-460.0,0.00019501,2]
[372651073,1752733857727,-460.0,0.00019501,2]
[372651074,1752733857737,-460.0,0.00019501,2]
[372651075,1752733857751,-4140.04,0.00019501,2]
[372651076,1752733857762,-932.79,0.00019501,2]
[372651077,1752733857771,-540.39,0.00019501,2]
[372651078,1752733857780,-460.0,0.00019501,2]
[372651079,1752733857790,-2892.45,0.00019501,2]
[372651080,1752733857799,-460.0,0.00019501,2]
[372651081,1752733857808,-477.15,0.00019501,2]
[372651082,1752733857818,-2151.51,0.00019501,2]
[372651083,1752733857828,-727.28,0.00019501,2]
[372651084,1752733857838,-168.0,0.00019501,2]
[372651085,1752733857847,-460.0,0.00019502,2]
[372651086,1752733857856,-460.0,0.00019502,2]
[372651087,1752733857866,-460.0,0.00019502,2]
[372651088,1752733857875,-460.0,0.00019503,2]
[372651089,1752733857885,-460.0,0.00019503,2]